bitfinex-derivatives/quotes_ETHF0:USTF0_20250125
["timestamp","ask_amount","ask_price","bid_price","bid_amount"]
[1737776678618,0.48701359,3316.6,3316.0,4.34799359]
[1737776679023,0.4825,3316.5,3316.0,4.34799359]
[1737776679419,0.00452359,3316.6,3316.0,3.86542359]
[1737776679620,0.00452359,3316.6,3316.0,3.21232359]
[1737776680119,0.48256,3316.2,3316.0,3.21232359]
[1737776680321,0.48256,3316.1,3316.0,3.21232359]
[1737776684819,0.48255,3316.2,3316.0,3.21232359]
[1737776693127,0.48255,3316.2,3316.0,0.00452359]
[1737776693431,0.48255,3316.2,3316.0,0.48708359]
[1737776693834,0.4795,3316.3,3316.0,0.00452359]
[1737776694134,0.48256,3316.1,3316.0,0.00452359]
[1737776696638,4.44794726,3316.2,3316.0,0.00452359]
[1737776697436,3.96539726,3316.2,3316.0,2.31314261]
[1737776697633,0.00452359,3316.6,3316.0,2.31314261]
[1737776697634,0.00452359,3316.6,3316.5,0.4825]
[1737776699938,3.69016,3317.5,3316.5,6.20625]
[1737776700239,1.0058,3317.4,3317.2,0.48239]
[1737776700643,1.0058,3317.4,3316.9,3.2078]
[1737776700844,1.0058,3317.4,3317.1,0.48241]
[1737776701439,1.0058,3317.4,3316.9,3.2078]
[1737776701645,0.48241,3317.2,3316.9,3.2078]
[1737776702146,0.4984,3317.4,3316.9,3.2078]
[1737776702445,0.48242,3317.1,3316.9,3.2078]
[1737776702646,3.8893951,3317.0,3316.9,3.2078]
[1737776703045,0.48242,3317.1,3316.9,3.2078]
[1737776703444,4.31500585,3317.1,3316.9,3.2078]
[1737776704048,0.48242,3317.1,3316.9,3.2078]
[1737776704451,3.83258585,3317.0,3316.9,3.2078]
[1737776704645,0.48244,3316.9,3316.4,3.69031]
[1737776704956,0.48248,3316.7,3316.4,3.2078]
[1737776705155,0.4779,3316.6,3316.4,3.2078]
[1737776705452,4.88630411,3316.6,3316.4,3.2078]
[1737776705755,4.40381411,3316.6,3316.4,3.2078]
[1737776705950,4.88631411,3316.6,3316.4,3.2078]
[1737776706547,4.88631411,3316.6,3316.1,0.48256]
[1737776706747,4.88631411,3316.6,3316.0,0.00452359]
[1737776706942,4.40381411,3316.6,3316.0,0.00452359]
[1737776707154,0.4825,3316.5,3316.0,0.00452359]
[1737776707350,0.48252,3316.4,3316.0,0.00452359]
[1737776707654,3.84379038,3316.4,3316.0,0.00452359]
[1737776707954,0.48255,3316.2,3316.0,0.00452359]
[1737776708756,0.48256,3316.1,3316.0,0.00452359]
[1737776710449,4.44149344,3316.1,3316.0,0.00452359]
[1737776717757,7.16673344,3316.1,3315.5,3.2078]
[1737776717958,0.48263,3315.6,3315.5,3.2078]
[1737776718763,2.30861902,3315.7,3315.0,3.2078]
[1737776718961,0.48266,3315.4,3315.2,0.00452359]
[1737776721067,4.94714727,3315.3,3315.2,0.00452359]
[1737776724970,0.4827,3315.1,3315.0,3.2078]
[1737776725266,2.79131902,3315.1,3315.0,3.2078]
[1737776725468,6.63913164,3315.1,3315.0,3.2078]
[1737776725962,0.4951,3315.2,3315.0,0.48272]
[1737776727868,0.4951,3315.2,3314.9,0.4852]
[1737776728068,0.4951,3315.2,3314.9,0.96793]
[1737776728264,0.4951,3315.2,3315.0,0.48271]
[1737776728476,0.4951,3315.2,3314.9,0.96793]
[1737776731867,0.4951,3315.2,3314.9,0.4852]
[1737776732761,0.9778,3315.2,3314.9,0.4852]
[1737776733263,0.48272,3315.0,3314.8,3.2078]
[1737776734466,3.84347149,3315.1,3314.8,3.2078]
[1737776734671,0.48273,3314.9,3314.8,3.2078]
[1737776736484,0.48273,3315.0,3314.8,3.2078]
[1737776737070,3.84347149,3315.1,3314.8,3.2078]
[1737776737372,0.48273,3314.9,3314.8,3.2078]
[1737776737773,3.84347149,3315.1,3314.8,3.2078]
[1737776738375,0.48272,3315.0,3314.8,3.2078]
[1737776740972,0.48268,3315.3,3314.9,0.48273]
[1737776741174,0.5084,3315.2,3314.7,0.00741574]
[1737776741368,0.5084,3315.2,3315.1,3.6905]
[1737776741577,0.5162,3315.4,3315.2,0.48268]
[1737776742069,0.5162,3315.4,3315.1,3.2078]
[1737776742276,0.00452359,3315.7,3315.5,0.48264]
[1737776742877,0.00452359,3315.7,3315.6,3.2078]
[1737776743274,0.00452359,3315.7,3315.6,3.69043]
[1737776746379,0.00452359,3315.7,3315.6,3.2078]
[1737776748489,0.00452359,3315.7,3315.6,3.69043]
[1737776750387,0.00452359,3315.7,3315.6,0.48263]
[1737776750592,0.00452359,3315.7,3315.6,3.69043]
[1737776751386,0.00452359,3315.7,3315.6,3.2078]
[1737776755692,0.00452359,3315.7,3315.6,3.69043]
[1737776755896,0.00452359,3315.7,3315.6,3.2078]
[1737776756191,0.00452359,3315.7,3315.6,3.69043]
[1737776756585,0.00452359,3315.7,3315.6,3.2078]
[1737776762998,0.00452359,3315.7,3315.6,3.69043]
[1737776763295,0.00452359,3315.7,3315.6,3.2078]
[1737776763499,0.00452359,3315.7,3315.6,3.69043]
[1737776763688,0.00452359,3315.7,3315.6,3.2078]
[1737776763890,1e-08,3315.9,3315.6,3.2078]
[1737776764091,0.4982,3316.3,3315.7,0.0087]
[1737776764295,0.4982,3316.3,3316.2,0.48254]
[1737776764596,4.21245,3316.9,3316.5,0.4825]
[1737776764801,3.73,3316.9,3316.5,0.4825]
[1737776764997,4.21245,3316.9,3316.5,0.4825]
[1737776765198,4.21245,3316.9,3316.4,0.00452359]
[1737776765501,4.21245,3316.9,3316.5,0.48249]
[1737776765901,1.00465,3316.9,3316.5,3.69029]
[1737776766103,2.31314261,3317.0,3316.5,3.2078]
[1737776766396,0.00452359,3317.0,3316.8,0.48246]
[1737776766996,0.00452359,3317.0,3316.9,3.69024]
[1737776770903,0.00452359,3317.0,3316.9,4.18924]
[1737776772205,0.00452359,3317.0,3316.9,3.69024]
[1737776773312,0.9719,3317.6,3316.9,8.2078]
[1737776773512,0.9719,3317.6,3317.5,3.69016]
[1737776773699,0.9719,3317.6,3317.5,3.2078]
[1737776773905,1.45424,3317.6,3317.5,3.2078]
[1737776774799,0.00452359,3317.9,3317.5,3.2078]
[1737776774999,0.00452359,3317.9,3317.8,0.48231]
[1737776775205,0.00452359,3317.9,3317.5,3.2078]
[1737776775503,0.00452359,3317.9,3317.8,0.48231]
[1737776775912,3.59e-06,3317.9,3317.8,0.48231]
[1737776776107,0.01120368,3318.9,3318.7,0.48217]
[1737776776108,0.514,3318.8,3318.7,0.48217]
[1737776776408,0.01120368,3318.9,3318.8,0.48217]
[1737776777412,0.00452359,3319.2,3318.7,1.0198]
[1737776777611,0.00452359,3319.2,3319.1,0.48212]
[1737776779915,3.2078,3320.3,3320.1,0.48197]
[1737776780607,3.7162,3320.7,3319.7,3.2078]
[1737776780805,0.00452359,3320.5,3320.1,3.68977]
[1737776781004,0.00452359,3320.5,3320.1,3.2078]
[1737776781312,0.00452359,3320.5,3320.1,3.68977]
[1737776781613,2.30861902,3321.2,3320.2,2.30861902]
[1737776781804,0.48189,3320.7,3320.6,3.2078]
[1737776782204,0.96359,3320.7,3320.6,3.2078]
[1737776782401,3.88681452,3320.6,3320.2,3.2078]
[1737776782911,0.48192,3320.5,3320.2,3.2078]
[1737776783107,6.67735354,3320.6,3320.2,3.2078]
[1737776783307,2.79056902,3320.3,3320.2,3.2078]
[1737776783502,0.48195,3320.3,3320.2,3.2078]
[1737776783911,3.90866003,3320.3,3320.2,3.2078]
[1737776784507,4.39061003,3320.3,3320.2,3.2078]
[1737776784815,3.90866003,3320.3,3320.2,3.2078]
[1737776785006,3.90866003,3320.3,3320.1,0.00451658]
[1737776785715,4.39061003,3320.3,3320.1,0.00451658]
[1737776785912,0.4862002,3320.7,3320.2,3.2078]
[1737776786116,0.4862002,3320.7,3320.2,3.68976]
[1737776786413,0.4862002,3320.7,3320.2,3.2078]
[1737776786813,0.9681002,3320.7,3320.2,3.2078]
[1737776787517,0.48191,3320.6,3320.2,3.2078]
[1737776787909,0.9681002,3320.7,3320.2,3.2078]
[1737776788418,0.48195,3320.3,3320.2,3.2078]
[1737776788618,6.15497864,3320.6,3320.2,3.2078]
[1737776788811,0.48193,3320.5,3320.2,3.2078]
[1737776789018,0.48192,3320.5,3320.2,3.2078]
[1737776789319,3.84555333,3320.4,3320.2,3.2078]
[1737776789913,3.84555333,3320.4,3320.3,0.48195]
[1737776789914,0.81678553,3320.4,3320.3,0.48195]
[1737776790619,0.0045002,3320.7,3320.3,0.48195]
[1737776790820,0.0045002,3320.7,3320.2,3.2078]
[1737776791317,0.4863902,3320.7,3320.2,3.2078]
[1737776791518,0.0045002,3320.7,3320.2,3.2078]
[1737776791718,0.0045002,3320.7,3320.6,3.2078]
[1737776791919,0.0045002,3320.7,3320.6,3.68971]
[1737776794618,0.0045002,3320.7,3320.6,10.99832902]
[1737776794814,3.2078,3322.5,3320.7,1.20474]
[1737776795008,0.48166,3322.3,3321.7,0.48174]
[1737776795213,0.9604,3322.4,3321.6,3.2078]
[1737776795612,4.90961755,3322.4,3321.6,3.68955]
[1737776795817,0.48167,3322.3,3321.7,0.48175]
[1737776796021,0.48167,3322.3,3321.8,0.48172]
[1737776796320,1.44205,3322.4,3322.0,0.48169]
[1737776796530,1.44205,3322.4,3322.0,3.68949]
[1737776796823,0.9604,3322.4,3322.0,3.2078]
[1737776797030,1.44206,3322.4,3322.0,3.2078]
[1737776797216,0.9604,3322.4,3322.0,3.2078]
[1737776797417,0.9604,3322.4,3322.0,3.6895]
[1737776797627,0.48163,3322.6,3322.1,0.48168]
[1737776797924,0.48163,3322.5,3322.1,0.48168]
[1737776798125,0.95762,3322.7,3322.1,0.48168]
[1737776798318,0.48162,3322.6,3322.1,0.48168]
[1737776798519,0.476,3322.7,3322.0,3.2078]
[1737776798718,3.95277931,3322.6,3322.0,3.2078]
[1737776798919,0.48168,3322.2,3322.0,3.2078]
[1737776799518,3.99197044,3322.6,3322.0,3.2078]
[1737776799725,0.48166,3322.4,3322.0,3.6895]
[1737776800130,0.48167,3322.3,3322.0,3.2078]
[1737776800322,0.48165,3322.4,3322.0,3.6895]
[1737776800723,0.5256,3322.3,3322.0,3.6895]
[1737776801030,1.00726,3322.3,3322.0,3.2078]
[1737776801228,0.48168,3322.2,3322.0,3.2078]
[1737776801530,1.00727,3322.3,3322.0,3.2078]
[1737776802531,0.5256,3322.3,3322.0,3.2078]
[1737776802732,0.48169,3322.2,3322.0,3.2078]
[1737776803124,0.5256,3322.3,3322.0,3.2078]
[1737776803332,1.00727,3322.3,3322.0,3.2078]
[1737776803533,0.5256,3322.3,3322.0,3.2078]
[1737776803925,0.48168,3322.2,3322.0,3.2078]
[1737776804322,0.48173,3321.8,3321.7,0.00451658]
[1737776805033,4.36987441,3321.8,3321.7,0.00451658]
[1737776805629,4.85207441,3321.8,3321.7,0.00451658]
[1737776811539,5.35627441,3321.8,3321.7,0.00451658]
[1737776812747,4.87407441,3321.8,3321.7,0.00451658]
[1737776818833,3.88814441,3321.8,3321.7,0.00451658]
[1737776819139,3.2078,3324.5,3322.2,3.2078]
[1737776819343,3.2078,3324.9,3324.1,3.2078]
[1737776819638,2.30861902,3326.7,3324.5,3.2078]
[1737776819639,2.30861902,3325.5,3324.5,3.2078]
[1737776819838,3.2078,3325.7,3324.5,3.2078]
[1737776820033,3.2078,3326.2,3324.8,2.30861902]
[1737776820235,2.30861902,3326.7,3325.4,5.51641902]
[1737776820437,0.48105,3326.5,3325.5,1.18052191]
[1737776820740,0.48109,3326.3,3325.7,2.30861902]
[1737776821039,0.9921,3326.9,3326.2,3.2078]
[1737776821040,0.48106,3326.5,3326.2,3.2078]
[1737776821241,0.9921,3326.9,3326.2,3.2078]
[1737776821439,2.30861902,3326.7,3326.0,3.2078]
[1737776821640,0.9921,3326.9,3326.0,3.2078]
[1737776822135,3.2278,3327.0,3325.7,0.00450972]
[1737776822343,2.30861902,3326.4,3325.7,0.00450972]
[1737776822532,0.02,3327.0,3325.9,5.51641902]
[1737776822735,2.30861902,3326.8,3326.5,3.2078]
[1737776822941,2.30861902,3326.7,3325.7,3.21230972]
[1737776823135,2.30861902,3326.5,3325.7,3.21230972]
[1737776823331,2.30861902,3326.1,3325.7,3.21230972]
[1737776823738,2.95365654,3326.1,3325.7,0.00450972]
[1737776823951,2.95365654,3326.1,3325.7,3.21230972]
[1737776824137,2.95365654,3326.5,3325.7,3.21230972]
[1737776824642,2.95365654,3326.1,3325.7,3.21230972]
[1737776825048,3.68892,3326.0,3325.7,0.00450972]
[1737776825238,0.48115,3325.8,3325.7,0.00450972]
[1737776825438,7.16202396,3326.0,3324.8,3.2078]
[1737776825640,2.95365654,3324.9,3324.0,4.70114187]
[1737776826143,2.95365654,3324.9,3324.8,3.2078]
[1737776826545,3.43493654,3324.9,3324.8,3.2078]
[1737776826744,2.95365654,3324.9,3324.8,3.2078]
[1737776827138,3.43493654,3324.9,3324.8,3.2078]
[1737776827340,3.43494654,3324.9,3324.5,0.00450972]
[1737776827640,3.82792317,3324.8,3324.5,0.00450972]
[1737776827839,0.48132,3324.7,3324.5,0.00450972]
[1737776828044,4.30922317,3324.8,3324.5,0.00450972]
[1737776828246,3.82792317,3324.8,3324.5,0.00450972]
[1737776828435,6.83121459,3324.9,3324.5,0.00450972]
[1737776828634,0.4813,3324.8,3324.5,0.00450972]
[1737776828946,6.83121459,3324.9,3324.5,0.00450972]
[1737776828947,10.03901459,3324.9,3324.5,0.00450972]
[1737776829544,0.48133,3324.6,3324.5,0.00450972]
[1737776830741,0.48142,3324.0,3323.2,3.2078]
[1737776830943,2.95365654,3324.0,3323.2,3.2078]
[1737776832047,2.95365654,3324.0,3323.3,0.49730972]
[1737776833345,3.43502654,3324.4,3323.8,3.2078]
[1737776833945,0.4814,3324.2,3323.8,3.2078]
[1737776835048,2.95365654,3324.4,3323.8,3.2078]
[1737776835244,0.4814,3324.1,3323.8,3.2078]
[1737776836947,0.48141,3324.0,3323.8,3.2078]
[1737776837348,4.38536245,3323.9,3323.8,3.2078]
[1737776837750,3.90393245,3323.9,3323.8,3.2078]
[1737776838144,2.95365654,3324.4,3323.8,3.2078]
[1737776838344,1.00564,3324.6,3324.2,3.2078]
[1737776838552,0.48135,3324.5,3324.2,3.2078]
[1737776839045,0.5243,3324.6,3324.2,3.2078]
[1737776839239,0.48141,3324.1,3323.8,3.2078]
[1737776839543,6.16145654,3324.4,3323.3,3.70510972]
[1737776839738,2.95365654,3324.0,3323.3,3.70510972]
[1737776839945,0.4815,3323.4,3323.3,3.21230972]
[1737776840153,2.95365654,3323.6,3323.3,3.21230972]
[1737776840546,4.3435259,3323.4,3323.3,0.00450972]
[1737776841344,0.9984,3323.4,3323.3,0.00450972]
[1737776841551,0.9984,3323.4,3322.3,3.6887]
[1737776841552,0.56529308,3323.4,3322.3,3.6887]
[1737776841744,0.48162,3322.6,3322.3,3.2078]
[1737776842655,4.31308927,3322.5,3322.3,3.2078]
[1737776843054,3.83144927,3322.5,3322.3,3.2078]
[1737776843255,3.83144927,3322.5,3322.1,0.00450972]
[1737776843448,3.43532654,3322.2,3322.1,0.00450972]
[1737776843648,3.83144927,3322.5,3322.1,0.00450972]
[1737776843948,3.83144927,3322.5,3322.1,3.21230972]
[1737776844152,2.95365654,3322.6,3322.1,3.21230972]
[1737776844344,1.77709972,3322.8,3322.1,3.69399972]
[1737776844550,1.77709972,3322.8,3322.1,3.21230972]
[1737776845153,1.29550972,3322.8,3322.1,3.69399972]
[1737776845356,1.29550972,3322.8,3322.2,0.5005]
[1737776845749,1.77709972,3322.8,3322.2,0.5005]
[1737776846049,0.00450972,3322.8,3322.5,0.48163]
[1737776846253,0.00450972,3322.8,3322.7,3.2078]
[1737776846555,0.00450972,3322.8,3322.7,3.6894]
[1737776846752,0.48138,3324.3,3322.7,8.57707022]
[1737776846951,2.95365654,3324.6,3324.0,3.2078]
[1737776847250,2.95365654,3324.6,3323.6,3.2078]
[1737776847457,0.4814,3324.1,3323.6,3.2078]
[1737776847852,2.95365654,3324.6,3324.0,3.2078]
[1737776847853,0.00450972,3324.2,3324.0,3.2078]
[1737776848052,0.4814,3324.1,3324.0,3.2078]
[1737776849160,4.42503481,3324.1,3324.0,3.2078]
[1737776850762,3.94363481,3324.1,3323.5,0.00450972]
[1737776850949,0.48142,3324.0,3323.9,3.2078]
[1737776851355,0.48145,3323.8,3323.5,3.21230972]
[1737776851552,3.94363481,3324.1,3323.5,3.21230972]
[1737776851753,0.48144,3323.9,3323.5,3.21230972]
[1737776852166,0.48143,3324.0,3323.5,3.21230972]
[1737776852458,3.94363481,3324.1,3323.5,3.21230972]
[1737776852659,0.48145,3323.8,3323.5,3.21230972]
[1737776853065,3.94363481,3324.1,3323.5,3.21230972]
[1737776853363,0.48145,3323.8,3323.5,3.21230972]
[1737776853658,0.48147,3323.7,3323.5,3.21230972]
[1737776853859,3.94363481,3324.1,3323.5,3.21230972]
[1737776854063,0.48147,3323.6,3323.5,3.21230972]
[1737776854453,0.48147,3323.6,3323.5,0.00450972]
[1737776854859,4.4007153,3323.6,3323.5,0.00450972]
[1737776862656,7.6085153,3323.6,3323.5,0.00450972]
[1737776862856,7.65689959,3323.6,3323.5,0.00450972]
[1737776863366,0.48156,3323.0,3322.9,3.2078]
[1737776863561,2.95365654,3323.2,3322.5,3.2078]
[1737776863767,0.48162,3322.6,3322.5,3.2078]
[1737776864960,4.40580321,3322.6,3322.5,3.2078]
[1737776865969,0.48166,3322.3,3322.2,0.00450972]
[1737776868671,4.44341965,3322.3,3322.2,0.00450972]
[1737776873273,0.48161,3322.7,3322.2,3.69397972]
[1737776873475,3.2078,3322.8,3322.2,3.21230972]
[1737776873774,0.48161,3322.7,3322.2,3.69397972]
[1737776873969,0.48161,3322.7,3322.2,3.21230972]
[1737776874767,0.48161,3322.7,3322.2,3.69397972]
[1737776875475,0.48162,3322.6,3322.2,3.21230972]
[1737776877167,0.48155,3323.1,3322.5,0.48162]
[1737776877373,2.29873797,3323.2,3322.7,3.2078]
[1737776877567,3.2078,3323.3,3322.7,3.2078]
[1737776877878,0.48153,3323.2,3322.7,3.68939]
[1737776878178,0.48153,3323.2,3322.7,3.2078]
[1737776878581,0.48153,3323.2,3322.7,3.68939]
[1737776878973,2.29873797,3323.5,3322.3,0.9922]
[1737776878974,2.29873797,3323.8,3323.1,3.2078]
[1737776879183,0.48151,3323.4,3323.1,3.2078]
[1737776879377,2.29873797,3323.8,3323.1,3.2078]
[1737776879587,0.48149,3323.5,3323.1,3.2078]
[1737776879890,0.48145,3323.8,3323.2,0.48152]
[1737776880187,0.48144,3323.9,3323.3,0.48151]
[1737776880387,2.79253797,3324.1,3323.2,0.9825]
[1737776880586,0.48147,3323.7,3323.2,0.9825]
[1737776880789,0.4815,3323.5,3323.2,0.9825]
[1737776880983,3.89612908,3323.6,3323.2,0.9825]
[1737776881183,3.89612908,3323.6,3323.5,3.2078]
[1737776881782,0.48146,3323.7,3323.5,3.2078]
[1737776882086,0.48147,3323.6,3323.5,3.2078]
[1737776882290,2.29873797,3323.8,3323.5,3.2078]
[1737776882692,0.48146,3323.7,3323.5,3.2078]
[1737776882989,0.48147,3323.6,3323.5,3.2078]
[1737776884192,4.43566723,3323.7,3323.5,3.2078]
[1737776884383,3.95420723,3323.7,3323.5,3.2078]
[1737776884784,0.48147,3323.6,3323.5,3.2078]
[1737776885291,4.40292659,3323.6,3323.5,3.2078]
[1737776887688,3.92145659,3323.6,3323.1,3.2078]
[1737776887895,0.48153,3323.2,3323.1,3.2078]
[1737776888589,0.48153,3323.2,3322.5,0.4808]
[1737776888590,2.29873797,3323.4,3322.5,3.6886]
[1737776888793,0.48159,3322.8,3322.5,3.6886]
[1737776889292,0.48161,3322.7,3322.5,3.6886]
[1737776889491,0.48159,3322.8,3322.5,3.6886]
[1737776890398,0.48158,3322.9,3322.5,3.6886]
[1737776892195,4.48183925,3323.1,3322.5,3.6886]
[1737776892497,0.48159,3322.8,3322.5,3.6886]
[1737776893297,0.48161,3322.7,3322.5,3.6886]
[1737776893498,4.48183925,3323.1,3322.5,3.6886]
[1737776893692,6.78057722,3323.1,3322.5,3.6886]
[1737776893993,0.48162,3322.6,3322.5,3.6886]
[1737776894493,0.48162,3322.6,3322.5,3.2078]
[1737776898104,4.35216959,3322.6,3322.5,3.2078]
[1737776898502,0.48166,3322.3,3322.2,0.00450972]
[1737776900098,4.43932757,3322.3,3322.2,0.00450972]
[1737776901807,7.69553356,3322.3,3322.2,0.00450972]
[1737776902005,7.21387356,3322.3,3321.3,3.2078]
[1737776902212,0.48177,3321.6,3321.3,3.2078]
[1737776902704,0.48178,3321.5,3321.3,3.2078]
[1737776902908,0.48179,3321.4,3321.3,3.2078]
[1737776903503,3.9275787,3321.5,3321.3,3.2078]
[1737776903704,4.4093587,3321.5,3321.3,3.2078]
[1737776904312,0.48179,3321.4,3321.3,3.2078]
[1737776904607,4.4093587,3321.5,3321.3,3.2078]
[1737776904809,0.00450972,3321.7,3321.3,3.2078]
[1737776905007,0.48179,3321.5,3321.3,3.2078]
[1737776906016,0.48179,3321.4,3321.3,3.2078]
[1737776911320,0.98139,3321.5,3321.3,3.2078]
[1737776911719,0.48179,3321.4,3321.3,3.2078]
[1737776912116,0.4996,3321.5,3321.3,3.2078]
[1737776912319,0.48179,3321.4,3321.3,3.2078]
[1737776917025,0.00450972,3321.7,3321.3,3.2078]
[1737776917429,0.48625972,3321.7,3321.3,3.2078]
[1737776917629,0.48178,3321.6,3321.3,3.2078]
[1737776917830,0.48179,3321.4,3321.3,3.2078]
[1737776918326,4.34376478,3321.4,3321.3,3.2078]
[1737776920635,4.34376478,3321.4,3321.0,0.00450972]
[1737776920636,0.48183,3321.1,3321.0,0.00450972]
[1737776920925,2.78056797,3321.1,3321.0,0.00450972]
[1737776921134,6.60433773,3321.1,3321.0,0.00450972]
[1737776922039,6.12250773,3321.1,3320.9,3.2078]
[1737776922226,0.48185,3321.0,3320.9,3.2078]
[1737776922930,4.37002812,3321.0,3320.9,3.2078]
[1737776924736,4.37002812,3321.0,3320.6,0.00451663]
[1737776924737,0.48189,3320.7,3320.6,0.00451663]
[1737776925032,2.78062797,3320.7,3320.6,0.00451663]
[1737776925330,6.77645675,3320.7,3320.6,0.00451663]
[1737776926931,6.82488713,3320.7,3320.6,0.00451663]
[1737776927234,6.82488713,3320.7,3320.3,3.2078]
[1737776927235,6.34299712,3320.7,3320.3,3.2078]
[1737776927435,2.78067797,3320.4,3320.3,3.2078]
[1737776927827,3.99582878,3320.7,3320.3,3.68974]
[1737776928027,2.29873797,3321.0,3320.5,0.48192]
[1737776928028,2.78058797,3321.0,3320.5,0.48192]
[1737776928234,2.29873797,3321.0,3320.5,0.48192]
[1737776928732,2.29873797,3321.0,3320.5,0.98192]
[1737776929036,2.78058797,3321.0,3320.5,0.98192]
[1737776929231,0.48186,3320.9,3320.5,0.5]
[1737776929439,2.78059797,3321.0,3320.5,0.5]
[1737776930231,2.29873797,3321.0,3320.5,0.5]
[1737776930529,0.48187,3320.9,3320.5,0.5]
[1737776931134,0.48187,3320.9,3320.7,3.2078]
[1737776932440,2.29873797,3321.0,3320.7,3.2078]
[1737776932639,2.80033797,3321.6,3320.7,3.2078]
[1737776932835,0.48178,3321.5,3321.2,3.2078]
[1737776933029,2.80033797,3321.6,3321.2,3.2078]
[1737776933231,3.28210797,3321.6,3321.2,3.2078]
[1737776933435,3.28210797,3321.6,3321.3,0.4976]
[1737776933631,2.80033797,3321.6,3321.3,0.4976]
[1737776934036,0.48179,3321.4,3321.3,0.4976]
[1737776934633,0.48179,3321.4,3321.2,3.2078]
[1737776934634,0.48181,3321.3,3321.2,3.2078]
[1737776934938,2.78054797,3321.3,3321.2,3.2078]
[1737776935437,6.72736612,3321.3,3321.2,3.2078]
[1737776941349,0.48185,3321.0,3320.6,3.7054]
[1737776942254,0.48182,3321.2,3320.6,4.18731]
[1737776943241,3.94681815,3321.3,3321.0,3.2078]
[1737776943640,4.42862815,3321.3,3321.0,3.2078]
[1737776944539,3.94681815,3321.3,3321.0,3.2078]
[1737776944741,4.42862815,3321.3,3321.0,3.2078]
[1737776947348,2.80033797,3321.6,3321.0,3.2078]
[1737776947548,2.80033797,3321.6,3321.4,3.2078]
[1737776947746,0.48178,3321.5,3321.4,3.2078]
[1737776949853,0.48183,3321.2,3321.0,3.2078]
[1737776953263,2.80033797,3321.6,3321.0,3.2078]
[1737776953560,0.4818,3321.4,3321.0,3.2078]
[1737776953755,0.48181,3321.3,3321.0,3.2078]
[1737776956156,0.48182,3321.2,3321.0,3.2078]
[1737776957153,0.48183,3321.1,3321.0,3.2078]
[1737776957756,0.48183,3321.1,3320.6,0.4976]
[1737776957757,0.48189,3320.7,3320.6,0.4976]
[1737776957959,0.48192,3320.5,3320.4,3.2108455]
[1737776958453,0.48192,3320.5,3320.4,0.0030455]
[1737776959160,3.908334,3320.7,3320.4,0.0030455]
[1737776959455,3.908334,3320.7,3320.5,3.2078]
[1737776959659,0.96926,3320.9,3320.6,0.5211]
[1737776959860,0.96927,3320.9,3320.6,0.5211]
[1737776960060,0.48188,3320.8,3320.6,0.5211]
[1737776960261,0.4874,3320.9,3320.6,0.5211]
[1737776960555,1.069,3321.2,3320.7,0.48188]
[1737776960757,0.4818,3321.4,3321.0,3.2078]
[1737776961358,0.48181,3321.3,3321.0,3.2078]
[1737776962763,0.48182,3321.2,3321.0,3.2078]
[1737776963459,0.48183,3321.2,3321.0,3.2078]
[1737776964557,0.48183,3321.1,3321.0,3.2078]
[1737776966659,0.48179,3321.4,3321.0,3.2078]
[1737776966865,0.5089,3321.5,3321.0,3.2078]
[1737776966866,0.48182,3321.2,3321.0,3.2078]
[1737776967468,4.35204894,3321.2,3321.0,3.2078]
[1737776967659,3.87022894,3321.4,3321.0,3.2078]
[1737776968060,0.48183,3321.2,3321.0,3.2078]
[1737776968854,0.4818,3321.4,3321.0,3.2078]
[1737776969061,3.87022894,3321.5,3321.0,3.68964]
[1737776969566,0.48179,3321.5,3321.0,3.2078]
[1737776970159,1.48777,3321.6,3321.0,3.68965]
[1737776970355,1.006,3321.6,3321.0,3.2078]
[1737776970566,0.48178,3321.5,3321.0,3.2078]
[1737776971267,1.006,3321.6,3321.1,0.35978336]
[1737776971463,1.006,3321.6,3321.0,3.68964]
[1737776971464,1.48777,3321.6,3321.0,3.68964]
[1737776971665,1.48777,3321.6,3321.1,0.35983559]
[1737776971968,1.48777,3321.6,3321.0,3.68964]
[1737776972168,1.006,3321.6,3321.1,0.35982943]
[1737776972366,1.006,3321.6,3321.0,3.2078]
[1737776972572,0.48178,3321.5,3321.1,0.35981149]
[1737776972769,0.48178,3321.5,3321.0,3.2078]
[1737776973076,3.89990509,3321.5,3321.0,3.2078]
[1737776973268,0.48183,3321.1,3321.0,3.2078]
[1737776974068,3.89990509,3321.5,3321.0,3.2078]
[1737776974473,0.48183,3321.1,3321.0,3.2078]
[1737776974673,2.29873797,3321.3,3320.5,3.2078]
[1737776974674,5.50653797,3321.3,3320.5,3.2078]
[1737776974967,5.50653797,3321.3,3320.5,4.2469]
[1737776975174,0.48191,3320.7,3320.5,4.2469]
[1737776975365,2.29873797,3321.0,3320.5,4.2469]
[1737776975674,0.001,5000.0,3320.9,3.2078]
[1737776975675,0.4818,3321.4,3320.9,3.2078]
[1737776975975,1.006,3321.6,3321.0,0.48184]
[1737776976164,1.006,3321.6,3320.9,3.2078]
[1737776976362,1.48777,3321.6,3321.0,0.84170416]
[1737776976664,1.48777,3321.6,3321.0,0.48184]
[1737776976874,1.48777,3321.6,3321.1,0.5223]
[1737776977072,1.006,3321.6,3321.2,0.5092]
[1737776977371,1.48776,3321.6,3321.2,0.5092]
[1737776977576,1.006,3321.6,3321.2,0.5092]
[1737776977766,1.48777,3321.6,3321.2,0.5092]
[1737776978162,0.5186,3321.6,3321.3,3.2078]
[1737776979467,0.00450972,3321.7,3321.3,3.2078]
[1737776980474,0.48626972,3321.7,3321.3,3.2078]
[1737776980770,0.00450972,3321.7,3321.3,3.2078]
[1737776980969,0.00450972,3321.7,3321.3,3.6896]
[1737776981174,0.00450972,3321.7,3321.3,3.2078]
[1737776982371,0.00450972,3321.7,3321.3,3.6896]
[1737776983375,0.00450972,3321.7,3321.3,3.2078]
[1737776983674,0.48625972,3321.7,3321.3,3.2078]
[1737776984276,0.00450972,3321.7,3321.3,3.6896]
[1737776984475,0.48625972,3321.7,3321.3,3.6896]
[1737776984671,0.00450972,3321.7,3321.3,3.6896]
[1737776984871,0.00450972,3321.7,3321.4,0.48179]